Workbook

Sheet RasterLite Tools
D1: RasterLite Performance for TrueMarble GeoTiffs loaded into 75% JPEG tiles with command-line tools
A3: Source File | B3: Source Size (MB) | C3: Source Num Tiles | D3: Load Time (sec) | E3: Load Rate (MB/Sec) | F3: Load Rate (Tiles/Sec) | G3: Pyramid Time (sec) | H3: Pyramid Levels | I3: Pyramid Rate (Tiles/Sec) | J3: Top Level Num Tiles | K3: Top Level Time (sec) | L3: Top Level Rate (Tiles/Sec) | M3: Target File | N3: Target File Size (MB)
A4: TrueMarble.32km.1350x675.tif | B4: 4 | C4: 9 | D4: < 1 | G4: < 1 | H4: 2 | J4: 1 | K4: <1 | M4: ras.sqlite
A5: TrueMarble.16km.2700x1350.tif | B5: 13 | C5: 36 | D5: < 1 | G5: < 1 | H5: 3 | J5: 1 | K5: <1 | M5: ras.sqlite
A6: TrueMarble.8km.5400x2700.tif | B6: 51 | C6: 121 | D6: < 1 | G6: 6 | H6: 4 | J6: 1 | K6: <1 | M6: ras.sqlite
A7: TrueMarble.4km.10800x5400.tif | B7: 188 | C7: 484 | D7: 4 | E7: =B7/D7 -> 47 | F7: =C7/D7 -> 121 | G7: 16 | H7: 5 | I7: =C7/G7 -> 30.25 | J7: 1 | K7: <1 | M7: ras.sqlite
A8: TrueMarble.2km.21600x10800.tif | B8: 780 | C8: 1849 | D8: 90 | E8: =B8/D8 -> 8.666666667 | F8: =C8/D8 -> 20.54444444 | G8: 62 | H8: 6 | I8: =C8/G8 -> 29.82258065 | J8: 1 | K8: <1 | M8: ras.sqlite | N8: 29
A9: TrueMarble.1km.21600x21600.A1.tif | B9: 1528 | C9: 1849
A10: TrueMarble.1km.21600x21600.A2.tif | B10: 1528 | C10: 1849
A11: TrueMarble.1km | B11: 3056 | C11: 3698 | D11: 195 | E11: =B11/D11 -> 15.67179487 | F11: =C11/D11 -> 18.96410256 | G11: 280 | H11: 6 | I11: =C11/G11 -> 13.20714286 | J11: 2 | K11: 1.2 | L11: =J11/K11 -> 1.666666667 | M11: ras.sqlite | N11: 103
A12: TrueMarble.500m.21600x21600.A1.tif | B12: 1528 | C12: 1849
A13: TrueMarble.500m.21600x21600.A2.tif | B13: 1528 | C13: 1849
A14: TrueMarble.500m.21600x21600.B1.tif | B14: 1528 | C14: 1849
A15: TrueMarble.500m.21600x21600.B2.tif | B15: 1528 | C15: 1849
A16: TrueMarble.500m.21600x21600.C1.tif | B16: 1528 | C16: 1849
A17: TrueMarble.500m.21600x21600.C2.tif | B17: 1528 | C17: 1849
A18: TrueMarble.500m.21600x21600.D1.tif | B18: 1528 | C18: 1849
A19: TrueMarble.500m.21600x21600.D2.tif | B19: 1528 | C19: 1849
A20: TrueMarble.500m | B20: 12224 | C20: 14792 | D20: 720 | E20: =B20/D20 -> 16.97777778 | F20: =C20/D20 -> 20.54444444 | G20: 900 | H20: 6 | I20: =C20/G20 -> 16.43555556 | J20: 8 | K20: 3.46 | L20: =J20/K20 -> 2.312138728 | M20: ras.sqlite | N20: 377
A21: TrueMarble.250m.21600x21600.A1.tif | B21: 1528 | C21: 1849
A22: TrueMarble.250m.21600x21600.A2.tif | B22: 1528 | C22: 1849
A23: TrueMarble.250m.21600x21600.A3.tif | B23: 1528 | C23: 1849
A24: TrueMarble.250m.21600x21600.A4.tif | B24: 1528 | C24: 1849
A25: TrueMarble.250m.21600x21600.B1.tif | B25: 1528 | C25: 1849
A26: TrueMarble.250m.21600x21600.B2.tif | B26: 1528 | C26: 1849
A27: TrueMarble.250m.21600x21600.B3.tif | B27: 1528 | C27: 1849
A28: TrueMarble.250m.21600x21600.B4.tif | B28: 1528 | C28: 1849
A29: TrueMarble.250m.21600x21600.C1.tif | B29: 1528 | C29: 1849
A30: TrueMarble.250m.21600x21600.C2.tif | B30: 1528 | C30: 1849
A31: TrueMarble.250m.21600x21600.C3.tif | B31: 1528 | C31: 1849
A32: TrueMarble.250m.21600x21600.C4.tif | B32: 1528 | C32: 1849
A33: TrueMarble.250m.21600x21600.D1.tif | B33: 1528 | C33: 1849
A34: TrueMarble.250m.21600x21600.D2.tif | B34: 1528 | C34: 1849
A35: TrueMarble.250m.21600x21600.D3.tif | B35: 1528 | C35: 1849
A36: TrueMarble.250m.21600x21600.D4.tif | B36: 1528 | C36: 1849
A37: TrueMarble.250m.21600x21600.E1.tif | B37: 1528 | C37: 1849
A38: TrueMarble.250m.21600x21600.E2.tif | B38: 1528 | C38: 1849
A39: TrueMarble.250m.21600x21600.E3.tif | B39: 1528 | C39: 1849
A40: TrueMarble.250m.21600x21600.E4.tif | B40: 1528 | C40: 1849
A41: TrueMarble.250m.21600x21600.F1.tif | B41: 1528 | C41: 1849
A42: TrueMarble.250m.21600x21600.F2.tif | B42: 1528 | C42: 1849
A43: TrueMarble.250m.21600x21600.F3.tif | B43: 1528 | C43: 1849
A44: TrueMarble.250m.21600x21600.F4.tif | B44: 1528 | C44: 1849
A45: TrueMarble.250m.21600x21600.G1.tif | B45: 1528 | C45: 1849
A46: TrueMarble.250m.21600x21600.G2.tif | B46: 1528 | C46: 1849
A47: TrueMarble.250m.21600x21600.G3.tif | B47: 1528 | C47: 1849
A48: TrueMarble.250m.21600x21600.G4.tif | B48: 1528 | C48: 1849
A49: TrueMarble.250m.21600x21600.H1.tif | B49: 1528 | C49: 1849
A50: TrueMarble.250m.21600x21600.H2.tif | B50: 1528 | C50: 1849
A51: TrueMarble.250m.21600x21600.H3.tif | B51: 1528 | C51: 1849
A52: TrueMarble.250m.21600x21600.H4.tif | B52: 1528 | C52: 1849
A53: TrueMarble.250m (a) | B53: 49536 | C53: 59168 | D53: 2820 | E53: =B53/D53 -> 17.56595745 | F53: =C53/D53 -> 20.98156028 | G53: 4066 | H53: 6 | I53: =C53/G53 -> 14.55189375 | J53: 32 | K53: 10.28 | L53: =J53/K53 -> 3.112840467 | M53: ras.sqlite | N53: 1345
A54: TrueMarble.250m (b) | B54: 49536 | C54: 59168 | D54: 3472 | E54: =B54/D54 -> 14.26728111 | F54: =C54/D54 -> 17.04147465 | G54: 3793 | H54: 6 | I54: =C54/G54 -> 15.5992618 | J54: 32 | K54: 7 | L54: =J54/K54 -> 4.571428571 | M54: ras.sqlite | N54: 2313
A55: TrueMarble.250m (c) | B55: 49536 | C55: 59168 | D55: 2690 | E55: 18.41486989 | F55: 21.99553903 | G55: 3631 | H55: 6 | I55: 16.29523547 | J55: 32 | K55: 7 | L55: 4.571428571 | M55: ras.sqlite | N55: 3280
A56: TrueMarble.250m (d) | B56: 49536 | C56: 59168 | D56: 2686 | E56: 18.44229337 | F56: 22.02829486 | G56: 3625 | H56: 6 | I56: 16.3222069 | J56: 32 | K56: 7 | L56: 4.571428571 | M56: ras.sqlite | N56: 4248
A57: TrueMarble.250m (e) | B57: 49536 | C57: 59168 | D57: 2694 | E57: 18.38752784 | F57: 21.96288048 | G57: 3633 | H57: 6 | I57: 16.28626479 | J57: 32 | K57: 8 | L57: 4 | M57: ras.sqlite | N57: 5215
A58: TrueMarble.250m (f) | B58: 49536 | C58: 59168 | D58: 2719 | E58: 18.21846267 | F58: 21.76094152 | G58: 3632 | H58: 6 | I58: 16.2907489 | J58: 32 | K58: 7 | L58: 4.571428571 | M58: ras.sqlite | N58: 6183
A59: TrueMarble.250m (g) | B59: 49536 | C59: 59168 | D59: 2687 | E59: 18.43542985 | F59: 22.02009676 | G59: 3651 | H59: 6 | I59: 16.20597097 | J59: 32 | K59: 8 | L59: 4 | M59: ras.sqlite | N59: 7150
A60: TrueMarble.250m (h) | B60: 49536 | C60: 59168 | D60: 2722 | E60: 18.19838354 | F60: 21.73695812 | G60: 3694 | H60: 6 | I60: 16.01732539 | J60: 32 | K60: 7 | L60: 4.571428571 | M60: ras.sqlite | N60: 8118
A61: TrueMarble.250m (i) | B61: 49536 | C61: 59168 | D61: 2656 | E61: 18.65060241 | F61: 22.27710843 | G61: 3570 | H61: 6 | I61: 16.57366947 | J61: 32 | K61: 7 | L61: 4.571428571 | M61: ras.sqlite | N61: 9085
A62: TrueMarble.250m (j) | B62: 49536 | C62: 59168 | D62: 2654 | E62: 18.66465712 | F62: 22.29389601 | G62: 3678 | H62: 6 | I62: 16.08700381 | J62: 32 | K62: 7 | L62: 4.571428571 | M62: ras.sqlite | N62: 10051
A63: TrueMarble.250m (k) | B63: 49536 | C63: 59168 | D63: 2683 | E63: 18.46291465 | F63: 22.05292583 | G63: 3631 | H63: 6 | I63: 16.29523547 | J63: 32 | K63: 7 | L63: 4.571428571 | M63: ras.sqlite | N63: 11019
A64: TrueMarble.250m (l) | B64: 49536 | C64: 59168 | D64: 2661 | E64: 18.61555806 | F64: 22.23524991 | G64: 3634 | H64: 6 | I64: 16.28178316 | J64: 32 | K64: 7 | L64: 4.571428571 | M64: ras.sqlite | N64: 11986
A67: Dell Vostro 1720 4GB RAM, Windows 7
A68: 2 Intel Core 2 Duo CPU P7570 2.26GH
A69: 500 GB Disk, NTFS
A70: SQLite default page size (1024)
A71: SQLite defalut page cache (2000 pages)

Sheet SpatiaLiteBenchmark.java
A1: 2012-01-13 | C1: SpatiaLite Performance for table copies, spatial indexes, and full table scans of TIGER places and TrueMarble 75% JPEG tiles via JDBC
C2: (But no raster pyramids)
A4: Source DB | B4: Source Table | C4: Source Size MB | D4: Num Tables | E4: Num Rows | F4: Target DB
A5: tiger.sqlite | B5: tl_2011_us_place | C5: 191 | D5: 1 | E5: 31119 | F5: benchmark.sqlite
A6: TrueMarble-250m.sqlite | B6: TrueMarble | C6: 2500 | D6: 2 | E6: 160285
C8: Trial | D8: Vector Copy Elapsed Time | E8: Raster Copy Elapsed Time | F8: Vector Copy Rate Bytes/Sec | G8: Raster Copy Rate Bytes/Sec | H8: Vector Copy Rate Rows/Sec | I8: Raster Copy Rate Rows/Sec | J8: Vector Query Elapsed Time | K8: Raster Query Elapsed Time | L8: DB Size After Vector Load (MB) | M8: DB Size After Raster Load (MB) | N8: DB Size After Raster Load (GB)
C9: 1 | D9: 00:02:22.248 | E9: 00:12:04.460 | F9: 1377945.4 | G9: 3502841.8 | H9: 218.76582 | I9: 221.37405 | J9: 00:00:01.404 | K9: 00:15:58.536 | L9: 190 | M9: 2609 | N9: =M9/1024 -> 2.547851562
C10: 2 | D10: 00:02:39.272 | E10: 00:12:53.666 | F10: 1227395.9 | G10: 3904686 | H10: 195.38274 | I10: 207.17596 | J10: 00:00:01.490 | K10: 00:02:53.504 | L10: 2795 | M10: 5676 | N10: =M10/1024 -> 5.54296875
A11: Dell Vostro 1720 4GB RAM, Windows 7 | C11: 3 | D11: 00:02:14.480 | E11: 00:11:33.605 | F11: 1458545.2 | G11: 3984790 | H11: 231.40245 | I11: 231.08975 | J11: 00:00:01.611 | K11: 00:03:45.198 | L11: 5863 | M11: 8499 | N11: 8.299804688
A12: 2 Intel Core 2 Duo CPU P7570 2.26GH | C12: 4 | D12: 00:02:32.652 | E12: 00:11:09.610 | F12: 1258916.6 | G12: 4134561.5 | H12: 203.85583 | I12: 239.37068 | J12: 00:00:01.535 | K12: 00:05:38.899 | L12: 8682 | M12: 11323 | N12: 11.05761719
A13: 500 GB Disk, NTFS | C13: 5 | D13: 00:02:12.370 | E13: 00:10:44.931 | F13: 1484424.9 | G13: 4282746.5 | H13: 235.09103 | I13: 248.53046 | J13: 00:00:01.487 | K13: 00:02:30.895 | L13: 11510 | M13: 14144 | N13: 13.8125
A14: SQLite default page size (1024) | C14: 6 | D14: 00:02:20.169 | E14: 00:11:05.263 | F14: 1398587.8 | G14: 4152613.2 | H14: 222.01056 | I14: 240.93478 | J14: 00:00:01.507 | K14: 00:03:40.234 | L14: 14331 | M14: 16966 | N14: 16.56835938
A15: SQLite defalut page cache (2000 pages) | C15: 7 | D15: 00:02:09.307 | E15: 00:11:36.210 | F15: 1581103.4 | G15: 3964684.8 | H15: 240.6598 | I15: 230.2876 | J15: 00:00:01.506 | K15: 00:04:19.398 | L15: 17161 | M15: 19792 | N15: 19.328125
C16: 8 | D16: 00:02:13.397 | E16: 00:12:08.220 | F16: 1469035.5 | G16: 3793912.5 | H16: 233.2811 | I16: 220.16505 | J16: 00:00:01.425 | K16: 00:02:05.229 | L16: 19979 | M16: 22613 | N16: 22.08300781
C17: 9 | D17: 00:01:50.571 | E17: 00:09:09.140 | F17: 1773596 | G17: 5030701.5 | H17: 281.4391 | I17: 291.88367 | J17: 00:00:01.423 | K17: 00:01:26.643 | L17: 22800 | M17: 25435 | N17: 24.83886719
C18: 10 | D18: 00:01:45.766 | E18: 00:09:05.190 | F18: 1852932.1 | G18: 5067890.5 | H18: 294.22498 | I18: 294.09067 | J18: 00:00:01.398 | K18: 00:01:25.625 | L18: 25622 | M18: 28256 | N18: 27.59375
C19: 11 | D19: 00:01:42.662 | E19: 00:09:00.841 | F19: 1908955.8 | G19: 5108047.5 | H19: 303.1209 | I19: 296.36252 | J19: 00:00:01.456 | K19: 00:01:35.425 | L19: 28443 | M19: 31078 | N19: 30.34960938
C20: 12 | D20: 00:01:48.440 | E20: 00:11:30.383 | F20: 1815135.4 | G20: 3991455.8 | H20: 286.96976 | I20: 232.16823 | J20: 00:00:01.442 | K20: 00:01:48.210 | L20: 31265 | M20: 33893 | N20: 33.09863281
C21: 13 | D21: 00:01:57.726 | E21: 00:09:33.945 | F21: 1664689.4 | G21: 4811313 | H21: 264.33414 | I21: 279.26892 | J21: 00:00:01.436 | K21: 00:02:02.103 | L21: 34080 | M21: 36714 | N21: 35.85351562
C22: 14 | D22: 00:01:51.758 | E22: 00:08:55.289 | F22: 1754171.9 | G22: 5159834 | H22: 278.44986 | I22: 299.43637 | J22: 00:00:01.430 | K22: 00:01:34.143 | L22: 36901 | M22: 39535 | N22: 38.60839844
C23: 15 | D23: 00:01:50.140 | E23: 00:09:02.358 | F23: 1779346.5 | G23: 5092831 | H23: 282.5404 | I23: 295.5336 | J23: 00:00:01.461 | K23: 00:01:54.200 | L23: 39722 | M23: 42356 | N23: 41.36328125
C24: 16 | D24: 00:02:27.771 | E24: 00:09:25.184 | F24: 1330186.2 | G24: 4887183.5 | H24: 210.58937 | I24: 283.5979 | J24: 00:00:01.420 | K24: 00:01:31.247 | L24: 42543 | M24: 45177 | N24: 44.11816406
C25: 17 | D25: 00:01:57.221 | E25: 00:08:48.200 | F25: 1671826 | G25: 5231053 | H25: 265.4729 | I25: 303.5689 | J25: 00:00:01.420 | K25: 00:01:24.947 | L25: 45364 | M25: 47998 | N25: 46.87304688
C26: 18 | D26: 00:01:54.617 | E26: 00:08:55.922 | F26: 1711345.2 | G26: 5153648 | H26: 271.50424 | I26: 299.0827 | J26: 00:00:01.427 | K26: 00:01:30.696 | L26: 48185 | M26: 50819 | N26: 49.62792969
C27: 18 | D27: 00:02:04.348 | E27: 00:09:03.448 | F27: 1576038.4 | G27: 5083445.5 | H27: 250.25734 | I27: 294.94083 | J27: 00:00:01.409 | K27: 00:01:44.367 | L27: 51006 | M27: 53641 | N27: 52.38378906
C28: 20 | D28: 00:02:10.702 | E28: 00:08:53.494 | F28: 1496443.1 | G28: 5178454 | H28: 238.09123 | I28: 300.44385 | J28: 00:00:01.397 | K28: 00:01:51.488 | L28: 53827 | M28: 56462 | N28: 55.13867188
C29: 21 | D29: 00:01:43.661 | E29: 00:08:50.446 | F29: 1890558.8 | G29: 5207191 | H29: 300.19968 | I29: 302.17026 | J29: 00:00:01.404 | K29: 00:02:11.289 | L29: 56649 | M29: 59283 | N29: 57.89355469
C30: 22 | D30: 00:01:44.372 | E30: 00:08:38.368 | F30: 1878386.4 | G30: 5329340.5 | H30: 298.15466 | I30: 309.21085 | J30: 00:00:01.386 | K30: 00:01:35.595 | L30: 59470 | M30: 62105 | N30: 60.64941406
C31: 23 | D31: 00:01:43.463 | E31: 00:08:44.122 | F31: 1894176.9 | G31: 5269754.5 | H31: 300.7742 | I31: 305.8162 | J31: 00:00:01.406 | K31: 00:01:29.588 | L31: 62292 | M31: 64926 | N31: 63.40429688
C32: 24 | D32: 00:01:52.560 | E32: 00:09:30.167 | F32: 1741091.1 | G32: 4844242 | H32: 276.46588 | I32: 281.1194 | J32: 00:00:01.396 | K32: 00:03:15.157 | L32: 65113 | M32: 67747 | N32: 66.15917969
C33: 25 | D33: 00:01:42.642 | E33: 00:08:43.519 | F33: 1909327.8 | G33: 5275832.5 | H33: 303.18 | I33: 306.16846 | J33: 00:00:01.386 | K33: 00:01:27.437 | L33: 67934 | M33: 70568 | N33: 68.9140625
C34: 26 | D34: 00:01:46.217 | E34: 00:09:48.500 | F34: 1845720 | G34: 4693208.5 | H34: 292.9757 | I34: 272.36194 | J34: 00:00:01.380 | K34: 00:01:36.585 | L34: 70755 | M34: 73389 | N34: 71.66894531
C35: 27 | D35: 00:02:04.477 | E35: 00:09:48.411 | F35: 1573911.5 | G35: 4691363.5 | H35: 249.998 | I35: 272.40314 | J35: 00:00:01.391 | K35: 00:01:36.520 | L35: 73575 | M35: 76208 | N35: 74.421875
C36: 28 | D36: 00:02:05.717 | E36: 00:08:15.199 | F36: 1559853.4 | G36: 5578437.5 | H36: 247.53215 | I36: 323.67795 | J36: 00:00:01.375 | K36: 00:03:21.294 | L36: 76395 | M36: 79030 | N36: 77.17773438
C37: 29 | D37: 00:01:51.203 | E37: 00:09:08.567 | F37: 1762337.5 | G37: 5034963 | H37: 279.83957 | I37: 292.18854 | J37: 00:00:01.378 | K37: 00:01:36.481 | L37: 79216 | M37: 81850 | N37: 79.93164062
C38: 30 | D38: 00:01:51.698 | E38: 00:08:58.559 | F38: 1755151 | G38: 5128626.5 | H38: 278.59946 | I38: 297.61826 | J38: 00:00:01.381 | K38: 00:01:30.945 | L38: 82037 | M38: 84672 | N38: 82.6875
C39: 31 | D39: 00:01:56.927 | E39: 00:09:51.182 | F39: 1676064.6 | G39: 4671771.5 | H39: 266.1404 | I39: 271.1263 | J39: 00:00:01.761 | K39: 00:01:47.310 | L39: 84858 | M39: 87492 | N39: 85.44140625
C40: 32 | D40: 00:01:51.360 | E40: 00:09:01.328 | F40: 1760625.2 | G40: 5102075 | H40: 279.44504 | I40: 296.0959 | J40: 00:00:01.403 | K40: 00:01:29.390 | L40: 87679 | M40: 90313 | N40: 88.19628906
C41: 33 | D41: 00:01:42.234 | E41: 00:09:06.128 | F41: 1916947.5 | G41: 5057539.5 | H41: 304.38992 | I41: 293.49347 | J41: 00:00:01.399 | K41: 00:01:35.144 | L41: 90500 | M41: 93134 | N41: 90.95117188
C42: 34 | D42: 00:01:44.216 | E42: 00:09:08.869 | F42: 1880529.9 | G42: 5033245 | H42: 298.60098 | I42: 292.02777 | J42: 00:00:01.442 | K42: 00:01:38.418 | L42: 93321 | M42: 95956 | N42: 93.70703125
C43: 35 | D43: 00:01:57.499 | E43: 00:08:57.419 | F43: 1667905.4 | G43: 5139521 | H43: 264.84482 | I43: 298.2496 | J43: 00:00:01.393 | K43: 00:01:43.601 | L43: 96143 | M43: 98777 | N43: 96.46191406
C44: 36 | D44: 00:01:48.269 | E44: 00:09:29.956 | F44: 1810776.4 | G44: 4846847.5 | H44: 287.423 | I44: 281.22348 | J44: 00:00:01.397 | K44: 00:01:34.426 | L44: 98964 | M44: 101598 | N44: 99.21679688
C45: 37 | D45: 00:01:47.963 | E45: 00:09:14.299 | F45: 1815225.8 | G45: 4983007.5 | H45: 288.23764 | I45: 289.16702 | J45: 00:00:01.384 | K45: 00:01:34.277 | L45: 101785 | M45: 104419 | N45: 101.9716797
C46: 38 | D46: 00:01:53.914 | E46: 00:09:22.406 | F46: 1721043.4 | G46: 4911062 | H46: 273.17975 | I46: 284.99875 | J46: 00:00:01.405 | K46: 00:01:52.883 | L46: 104606 | M46: 107240 | N46: 104.7265625
C47: 39 | D47: 00:02:03.320 | E47: 00:09:15.689 | F47: 1586652 | G47: 4971272.5 | H47: 252.34349 | I47: 288.4437 | J47: 00:00:01.385 | K47: 00:01:36.428 | L47: 107427 | M47: 110061 | N47: 107.4814453
C48: 40 | D48: 00:02:00.445 | E48: 00:09:00.786 | F48: 1627721.8 | G48: 5108006 | H48: 258.36688 | I48: 296.39264 | J48: 00:00:01.397 | K48: 00:01:36.701 | L48: 110248 | M48: 112883 | N48: 110.2373047
C49: 41 | D49: 00:01:56.538 | E49: 00:08:47.396 | F49: 1681659.2 | G49: 5237110.5 | H49: 267.02878 | I49: 303.91776 | J49: 00:00:01.394 | K49: 00:01:34.143 | L49: 113070 | M49: 115704 | N49: 112.9921875
C50: 42 | D50: 00:02:04.487 | E50: 00:09:29.154 | F50: 1578556 | G50: 4853807 | H50: 249.9779 | I50: 281.61975 | J50: 00:00:01.412 | K50: 00:02:17.680 | L50: 115891 | M50: 118526 | N50: 115.7480469
C51: 43 | D51: 00:01:47.510 | E51: 00:09:14.206 | F51: 1823750.5 | G51: 4983829 | H51: 289.45215 | I51: 289.21558 | J51: 00:00:01.392 | K51: 00:01:37.163 | L51: 118713 | M51: 121347 | N51: 118.5029297
C52: 44 | D52: 00:01:44.739 | E52: 00:08:57.677 | F52: 1871100.8 | G52: 5137054.5 | H52: 297.10995 | I52: 298.10648 | J52: 00:00:01.394 | K52: 00:01:34.377 | L52: 121534 | M52: 124168 | N52: 121.2578125
C53: 45 | D53: 00:01:47.679 | E53: 00:09:08.301 | F53: 1820013.4 | G53: 5037420.5 | H53: 288.99786 | I53: 292.3303 | J53: 00:00:01.419 | K53: 00:04:52.530 | L53: 124355 | M53: 126989 | N53: 124.0126953
C54: 46 | D54: 00:02:16.377 | E54: 00:09:02.545 | F54: 1320792.4 | G54: 5091702.5 | H54: 228.18364 | I54: 295.43173 | J54: 00:00:01.401 | K54: 00:01:37 | L54: 127161 | M54: 129795 | N54: 126.7529297
C55: 47 | D55: 00:01:51.218 | E55: 00:09:13.314 | F55: 1762725.9 | G55: 4991737.5 | H55: 279.80182 | I55: 289.6818 | J55: 00:00:01.400 | K55: 00:01:39.524 | L55: 129982 | M55: 132616 | N55: 129.5078125
C56: 48 | D56: 00:02:00.472 | E56: 00:09:14.680 | F56: 1626744.9 | G56: 4979474 | H56: 258.309 | I56: 288.9684 | J56: 00:00:01.396 | K56: 00:01:52.961 | L56: 132803 | M56: 135437 | N56: 132.2626953
C57: 49 | D57: 00:01:48.322 | E57: 00:09:34.715 | F57: 1809209.8 | G57: 4811829.5 | H57: 287.28238 | I57: 278.89474 | J57: 00:00:01.386 | K57: 00:01:35.216 | L57: 135624 | M57: 138261 | N57: 135.0205078
C58: 50 | D58: 00:01:43.195 | E58: 00:09:05.401 | F58: 1899096 | G58: 5058258 | H58: 301.5553 | I58: 293.88467 | J58: 00:00:01.382 | K58: 00:01:57.246 | L58: 138448 | M58: 141079 | N58: 137.7724609

Sheet SpatiaLiteBenchmark.java (2)
A1: 2012-03-26 | C1: SpatiaLite Performance for initial table copies, then rows copies to same tables, and full table scans of TIGER places and TrueMarble 75% JPEG tiles via JDBC
C2: (But no raster pyramids)
A4: Source DB | B4: Source Table | C4: Source Size MB | D4: Num Tables | E4: Num Rows | H4: Target DB
A5: tiger.sqlite | B5: tl_2011_us_place | C5: 191 | D5: 1 | E5: 31119 | F5: (in feature table) | H5: benchmark.sqlite
A6: TrueMarble-250m.sqlite | B6: TrueMarble | C6: 2500 | D6: 2 | E6: 80143 | F6: (in _metadata and _rasters tables)
C8: Trial | D8: Vector Copy Elapsed Time | E8: Raster Copy Elapsed Time | F8: Vector Copy Rate Bytes/Sec | G8: Raster Copy Rate Bytes/Sec | H8: Vector Copy Rate Rows/Sec | I8: Raster Copy Rate Rows/Sec | J8: Vector Target Table Rows | K8: Vector Query Elapsed Time | L8: Vector Query Rate Rows/Sec | M8: Raster Target Table Rows | N8: Raster Query Elapsed Time | O8: Raster Query Rate Rows/Sec | P8: DB Size After Vector Load (MB) | Q8: DB Size After Raster Load (MB) | R8: DB Size After Raster Load (GB)
C9: 1 | D9: 0:1:33.298 | E9: 0:9:38.640 | F9: 2083648.8 | G9: 4764651 | H9: 333.5 | I9: 138.5 | J9: 31119 | K9: 0:0:2.170 | L9: =J9/Secs(K9) -> 14340.553 | M9: 80143 | N9: 0:1:25.561 | O9: =M9/Secs(N9) -> 936.6767569 | P9: 189 | Q9: 2818 | R9: =Q9/1024 -> 2.751953125
C10: 2 | D10: 0:0:37.874 | E10: 0:9:36.269 | F10: 5132058.5 | G10: 4783878 | H10: 821.64545 | I10: 139.07048 | J10: =J9 + 31118 -> 62237 | K10: 0:0:8.971 | L10: =J10/Secs(K10) -> 6937.576636 | M10: =M9+80143 -> 160286 | N10: 0:5:30.63 | O10: =M10/Secs(N10) -> 484.789644 | P10: 3003 | Q10: 5676 | R10: =Q10/1024 -> 5.54296875
A11: Dell Vostro 1720 4GB RAM, Windows 7 | C11: 3 | D11: 0:0:38.465 | E11: 0:9:34.343 | F11: 5053100 | G11: 4799898.5 | H11: 809.0212 | I11: 139.53682 | J11: 93355 | K11: 0:0:15.695 | L11: 5948.072635 | M11: =M10+80143 -> 240429 | N11: 0:6:20.0 | O11: 632.7078947 | P11: 5818 | Q11: 8447 | R11: 8.249023438
A12: 2 Intel Core 2 Duo CPU P7570 2.26GH | C12: 4 | D12: 0:0:36.840 | E12: 0:9:54.603 | F12: 5276101.5 | G12: 4636351 | H12: 844.70685 | I12: 134.78236 | J12: 124473 | K12: 0:0:20.577 | L12: 6049.132527 | M12: 320572 | N12: 0:7:55.319 | O12: 674.4354844 | P12: 8632 | Q12: 11261 | R12: 10.99707031
A13: 500 GB Disk, NTFS | C13: 5 | D13: 0:0:39.710 | E13: 0:9:40.746 | F13: 4907876.5 | G13: 4746942.5 | H13: 783.65656 | I13: 137.99837 | J13: 155591 | K13: 0:0:29.340 | L13: 5303.033401 | M13: 400715 | N13: 0:10:1.474 | O13: 666.2216488 | P13: 11447 | Q13: 14076 | R13: 13.74609375
A14: SQLite default page size (1024) | C14: 6 | D14: 0:0:35.994 | E14: 0:9:12.403 | F14: 5400111 | G14: 4990538 | H14: 864.5608 | I14: 145.0788 | J14: 186709 | K14: 0:0:35.702 | L14: 5229.651 | M14: 480858 | N14: 0:11:8.664 | O14: 719.1324791 | P14: 14261 | Q14: 16891 | R14: 16.49511719
A15: SQLite defalut page cache (2000 pages) | C15: 7 | D15: 0:0:36.375 | E15: 0:9:36.661 | F15: 5343548.5 | G15: 4780604.5 | H15: 855.5051 | I15: 138.97594 | J15: 217827 | K15: 0:0:43.898 | L15: 4962.116725 | M15: 561001 | N15: 0:12:42.28 | O15: 735.9513565 | P15: 17076 | Q15: 19705 | R15: 19.24316406
C16: 8 | D16: 0:0:38.26 | E16: 0:9:48.330 | F16: 5111436.5 | G16: 4685674 | H16: 818.3611 | I16: 136.21947 | J16: 248945 | K16: 0:0:49.414 | L16: 5037.944712 | M16: 641144 | N16: 0:14:22.9 | O16: 743.0107776 | P16: 19890 | Q16: 22519 | R16: 21.99121094
C17: 9 | D17: 0:0:38.747 | E17: 0:9:46.373 | F17: 5016429 | G17: 4701585 | H17: 803.1331 | I17: 136.6741 | J17: 280063 | K17: 0:1:2.66 | L17: 4469.565911 | M17: 721287 | N17: 0:15:57.676 | O17: 753.1639093 | P17: 22705 | Q17: 25334 | R17: 24.74023438
C18: 10 | D18: 0:0:38.128 | E18: 0:9:46.338 | F18: 5097762.5 | G18: 4701572 | H18: 816.1719 | I18: 136.68225 | J18: 311181 | K18: 0:1:8.264 | L18: 4558.493496 | M18: 801430 | N18: 0:17:26.827 | O18: 765.580177 | P18: 25519 | Q18: 28148 | R18: 27.48828125
C19: 11 | D19: 0:0:39.961 | E19: 0:9:51.41 | F19: 4863929.5 | G19: 4664431 | H19: 778.7343 | I19: 135.59465 | J19: 342299 | K19: 0:1:9.972 | L19: 4891.942491 | M19: 881573 | N19: 0:20:31.174 | O19: 716.042574 | P19: 28334 | Q19: 30963 | R19: 30.23730469
C20: 12 | D20: 0:0:39.571 | E20: 0:9:56.350 | F20: 4911970.5 | G20: 4622631.5 | H20: 786.40924 | I20: 134.38753 | J20: 373417 | K20: 0:1:22.735 | L20: 4513.410286 | M20: 961716 | N20: 0:21:39.135 | O20: 740.2741055 | P20: 31148 | Q20: 33777 | R20: 32.98535156
C21: 13 | D21: 0:0:39.481 | E21: 0:10:3.470 | F21: 4923064 | G21: 4568119 | H21: 788.20197 | I21: 132.80197 | J21: 404535 | K21: 0:1:29.27 | L21: 4531.58956 | M21: 1041859 | N21: 0:22:34.632 | O21: 769.1085107 | P21: 33963 | Q21: 36592 | R21: 35.734375
C22: 14 | D22: 0:0:39.934 | E22: 0:10:11.94 | F22: 4867218.5 | G22: 4511234.5 | H22: 779.2608 | I22: 131.14513 | J22: 435653 | K22: 0:1:35.471 | L22: 4563.197201 | M22: 1122002 | N22: 0:24:56.82 | O22: 749.5904651 | P22: 36777 | Q22: 39406 | R22: 38.48242188
C23: 15 | D23: 0:0:39.375 | E23: 0:9:24.176 | F23: 4936421 | G23: 4886397.5 | H23: 790.3238 | I23: 142.0514 | J23: 466771 | K23: 0:1:43.288 | L23: 4519.121292 | M23: 1202145 | N23: 0:25:28.21 | O23: 786.635999 | P23: 39591 | Q23: 42220 | R23: 41.23046875
C24: 16 | D24: 0:0:35.570 | E24: 0:9:18.553 | F24: 5464365.5 | G24: 4935589.5 | H24: 874.86646 | I24: 143.48146 | J24: 497889 | K24: 0:1:50.413 | L24: 4509.33314 | M24: 1282288 | N24: 0:26:34.315 | O24: 804.2877349 | P24: 42406 | Q24: 45035 | R24: 43.97949219
C25: 17 | D25: 0:0:36.507 | E25: 0:9:22.46 | F25: 5324228 | G25: 4904952 | H25: 852.41187 | I25: 142.5897 | J25: 529007 | K25: 0:2:27.392 | L25: 3589.116099 | M25: 1362431 | N25: 0:28:26.865 | O25: 798.2066537 | P25: 45220 | Q25: 47849 | R25: 46.72753906
C26: 18 | D26: 0:0:36.261 | E26: 0:9:27.466 | F26: 5360235 | G26: 4858060.5 | H26: 858.1947 | I26: 141.22784 | J26: 560125 | K26: 0:2:5.128 | L26: 4476.41615 | M26: 1442574 | N26: 0:30:16.309 | O26: 794.2338005 | P26: 48035 | Q26: 50664 | R26: 49.4765625
C27: 19 | D27: 0:0:36.443 | E27: 0:9:35.191 | F27: 5333578 | G27: 4792822.5 | H27: 853.9088 | I27: 139.33112 | J27: =J26 + 31118 -> 591243 | K27: 0:2:11.239 | L27: 4505.086141 | M27: 1522717 | N27: 0:32:10.601 | O27: 788.7269301 | P27: 50849 | Q27: 53478 | R27: 52.22460938
C28: 20 | D28: 0:0:36.805 | E28: 0:9:30.303 | F28: 5281007.5 | G28: 4833901 | H28: 845.51013 | I28: 140.5253 | J28: 622361 | K28: 0:2:18.708 | L28: 4486.842864 | M28: 1602860 | N28: 0:33:40.930 | O28: 793.1298956 | P28: 53664 | Q28: 56293 | R28: 54.97363281
C29: 21 | D29: 0:0:37.7 | E29: 0:9:36.3 | F29: 5252292.5 | G29: 4786122.5 | H29: 840.8949 | I29: 139.13469 | J29: 653479 | K29: 0:2:25.304 | L29: 4497.322854 | M29: 1683003 | N29: 0:35:19.803 | O29: 793.9431164 | P29: 56478 | Q29: 59107 | R29: 57.72167969
C30: 22 | D30: 0:0:37.348 | E30: 0:9:36.972 | F30: 5204337 | G30: 4778233.5 | H30: 833.2173 | I30: 138.90103 | J30: 684597 | K30: 0:2:34.935 | L30: 4418.607803 | M30: 1763146 | N30: 0:37:34.752 | O30: 781.9689261 | P30: 59293 | Q30: 61922 | R30: 60.47070312
C31: 23 | D31: 0:0:38.50 | E31: 0:9:54.668 | F31: 5108320.5 | G31: 4636023 | H31: 817.845 | I31: 134.76762 | J31: 715715 | K31: 0:2:40.202 | L31: 4467.578432 | M31: 1843289 | N31: 0:38:12.839 | O31: 803.933028 | P31: 62107 | Q31: 64736 | R31: 63.21875
C32: 24 | D32: 0:0:38.635 | E32: 0:9:43.668 | F32: 5030971.5 | G32: 4723928.5 | H32: 805.4614 | I32: 137.3075 | J32: 746833 | K32: 0:2:47.207 | L32: 4466.51755 | M32: 1923432 | N32: 0:39:57.694 | O32: 802.2007813 | P32: 64922 | Q32: 67551 | R32: 65.96777344
C33: 25 | D33: 0:0:38.169 | E33: 0:9:43.554 | F33: 5092287 | G33: 4724339 | H33: 815.29517 | I33: 137.3343 | J33: 777951 | K33: 0:2:54.236 | L33: 4464.926881 | M33: 2003575 | N33: 0:41:32.965 | O33: 803.6915881 | P33: 67736 | Q33: 70366 | R33: 68.71679688
C34: 26 | D34: 0:0:38.678 | E34: 0:9:44.574 | F34: 5025378 | G34: 4716096 | H34: 804.5658 | I34: 137.0947 | J34: 809069 | K34: 0:3:2.215 | L34: 4440.188788 | M34: 2083718 | N34: 0:42:54.114 | O34: 809.489401 | P34: 70551 | Q34: 73180 | R34: 71.46484375
C35: 27 | D35: 0:0:40.750 | E35: 0:9:43.128 | F35: 4769855 | G35: 4727790.5 | H35: 763.6564 | I35: 137.4346 | J35: 840187 | K35: 0:3:8.557 | L35: 4455.878063 | M35: 2163861 | N35: 0:44:43.322 | O35: 806.411232 | P35: 73366 | Q35: 75995 | R35: 74.21386719
C36: 28 | D36: 0:0:38.878 | E36: 0:10:20.931 | F36: 4997841 | G36: 4419151.5 | H36: 800.427 | I36: 129.06747 | J36: 871305 | K36: 0:4:11.685 | L36: 3461.886882 | M36: 2244004 | N36: 0:46:52.498 | O36: 797.8686563 | P36: 76180 | Q36: 78797 | R36: 76.95019531
C37: 29 | D37: 0:0:38.945 | E37: 0:9:39.922 | F37: 4990820 | G37: 4753934.5 | H37: 799.0499 | I37: 138.19444 | J37: 902423 | K37: 0:4:6.654 | L37: 3658.659499 | M37: 2324147 | N37: 0:48:38.165 | O37: 796.4412567 | P37: 78982 | Q37: 81612 | R37: 79.69921875
C38: 30 | D38: 0:0:39.175 | E38: 0:9:41.140 | F38: 4961623 | G38: 4743991.5 | H38: 794.35864 | I38: 137.9048 | J38: 933541 | K38: 0:4:15.790 | L38: 3649.638375 | M38: 2404290 | N38: 0:49:52.837 | O38: 803.3481275 | P38: 81797 | Q38: 84426 | R38: 82.44726562
C39: 31 | D39: 0:0:38.900 | E39: 0:9:46.663 | F39: 4996593.5 | G39: 4699302.5 | H39: 799.9742 | I39: 136.60654 | J39: 964659 | K39: 0:4:14.765 | L39: 3786.465959 | M39: 2484433 | N39: 0:51:34.37 | O39: 802.8881485 | P39: 84611 | Q39: 87241 | R39: 85.19628906
C40: 32 | D40: 0:0:51.323 | E40: 0:10:8.20 | F40: 3787221.8 | G40: 4534237 | H40: 606.3363 | I40: 131.8081 | J40: 995777 | K40: 0:3:43.716 | L40: 4451.076365 | M40: 2564576 | N40: 0:53:49.665 | O40: 794.0687347 | P40: 87426 | Q40: 90055 | R40: 87.94433594
C41: 33 | D41: 0:0:39.749 | E41: 0:10:9.83 | F41: 4889871 | G41: 4526250 | H41: 782.8876 | I41: 131.5781 | J41: 1026895 | K41: 0:3:50.594 | L41: 4453.259842 | M41: 2644719 | N41: 0:57:38.374 | O41: 764.7290316 | P41: 90241 | Q41: 92870 | R41: 90.69335938
C42: 34 | D42: 0:0:36.986 | E42: 0:9:31.360 | F42: 5255274.5 | G42: 4824241.5 | H42: 841.3724 | I42: 140.26534 | J42: 1058013 | K42: 0:4:4.50 | L42: 4327.251534 | M42: 2724862 | N42: 0:57:26.529 | O42: 790.6104954 | P42: 93055 | Q42: 95684 | R42: 93.44140625
C43: 35 | D43: 0:0:36.854 | E43: 0:10:9.236 | F43: 5274097.5 | G43: 4525173.5 | H43: 844.3859 | I43: 131.54507 | J43: 1089131 | K43: 0:4:4.307 | L43: 4458.042545 | M43: 2805005 | N43: 0:59:2.431 | O43: 791.8305254 | P43: 95869 | Q43: 98498 | R43: 96.18945312
C44: 36 | D44: 0:0:38.768 | E44: 0:9:49.264 | F44: 5013606 | G44: 4678560 | H44: 802.698 | I44: 136.00356 | J44: 1120249 | K44: 0:4:15.567 | L44: 4383.386744 | M44: 2885148 | N44: 1:0:45.785 | O44: 791.3653712 | P44: 98684 | Q44: 101313 | R44: 98.93847656
C45: 37 | D45: 0:0:38.743 | E45: 0:10:0.435 | F45: 5016841.5 | G45: 4591148 | H45: 803.21606 | I45: 133.47324 | J45: 1151367 | K45: 0:4:18.417 | L45: 4455.461521 | M45: 2965291 | N45: 1:2:3.911 | O45: 796.284068 | P45: 101498 | Q45: 104127 | R45: 101.6865234
C46: 38 | D46: 0:0:38.537 | E46: 0:9:54.157 | F46: 5042702.5 | G46: 4640017.5 | H46: 807.509 | I46: 134.88354 | J46: 1182485 | K46: 0:4:26.469 | L46: 4437.608127 | M46: 3045434 | N46: 1:2:12.910 | O46: 815.8337597 | P46: 104313 | Q46: 106942 | R46: 104.4355469
C47: 39 | D47: 0:0:39.191 | E47: 0:9:55.662 | F47: 4959492.5 | G47: 4628734 | H47: 794.034 | I47: 134.5427 | J47: 1213603 | K47: 0:4:35.471 | L47: 4405.556302 | M47: 3125577 | N47: 1:15:28.167 | O47: 690.2521484 | P47: 107127 | Q47: 109757 | R47: 107.1845703
C48: 40 | D48: 0:0:38.989 | E48: 0:9:56.466 | F48: 4985188 | G48: 4622028 | H48: 798.14825 | I48: 134.36139 | J48: 1244721 | K48: 0:4:40.838 | L48: 4432.167299 | M48: 3205720 | N48: 1:6:41.882 | O48: 801.0531045 | P48: 109942 | Q48: 112571 | R48: 109.9326172
C49: 41 | D49: 0:0:39.752 | E49: 0:10:13.537 | F49: 4889605.5 | G49: 4493465 | H49: 782.82855 | I49: 130.62292 | J49: 1275839 | K49: 0:4:49.911 | L49: 4400.795417 | M49: 3285863 | N49: 1:9:4.731 | O49: 792.7807619 | P49: 112756 | Q49: 115386 | R49: 112.6816406
C50: 42 | D50: 0:0:39.709 | E50: 0:9:53.941 | F50: 4894797 | G50: 4641725.5 | H50: 783.6763 | I50: 134.9326 | J50: 1306957 | K50: 0:4:55.905 | L50: 4416.812828 | M50: 3366006 | N50: 1:10:59.635 | O50: 790.2099593 | P50: 115571 | Q50: 118200 | R50: 115.4296875
C51: 43 | D51: 0:0:39.124 | E51: 0:9:56.139 | F51: 4967986 | G51: 4624611.5 | H51: 795.3941 | I51: 134.43509 | J51: 1338075 | K51: 0:5:2.575 | L51: 4422.291994 | M51: 3446149 | N51: 1:11:29.970 | O51: 803.3037527 | P51: 118386 | Q51: 121015 | R51: 118.1787109
C52: 44 | D52: 0:0:38.839 | E52: 0:9:54.513 | F52: 5004441 | G52: 4637252.5 | H52: 801.2307 | I52: 134.80276 | J52: 1369193 | K52: 0:6:35.222 | L52: 3464.364332 | M52: 3526292 | N52: 1:12:18.22 | O52: 812.8430554 | P52: 121200 | Q52: 123829 | R52: 120.9267578
C53: 45 | D53: 0:0:39.112 | E53: 0:9:54.9 | F53: 4969615 | G53: 4641187.5 | H53: 795.638 | I53: 134.91716 | J53: 1400311 | K53: 0:6:3.383 | L53: 3853.540204 | M53: 3606435 | N53: 1:14:56.681 | O53: 802.0215354 | P53: 124015 | Q53: 126644 | R53: 123.6757812
C54: 46 | D54: 0:0:39.799 | E54: 0:10:5.731 | F54: 4883831 | G54: 4551371.5 | H54: 781.904 | I54: 132.30624 | J54: 1431429 | K54: 0:5:26.641 | L54: 4382.269831 | M54: 3686578 | N54: 1:18:8.396 | O54: 786.3196709 | P54: 126829 | Q54: 129458 | R54: 126.4238281
C55: 47 | D55: 0:0:37.510 | E55: 0:9:57.823 | F55: 5177820.5 | G55: 4611591 | H55: 829.6188 | I55: 134.0564 | J55: 1462547 | K55: 0:5:32.222 | L55: 4402.318329 | M55: 3766721 | N55: 1:18:24.260 | O55: 800.7042553 | P55: 129644 | Q55: 132273 | R55: 129.1728516
C56: 48 | D56: 0:0:39.188 | E56: 0:9:34.486 | F56: 4959977 | G56: 4799017.5 | H56: 794.0951 | I56: 139.50209 | J56: 1493665 | K56: 0:5:43.562 | L56: 4347.585006 | M56: 3846864 | N56: 1:19:20.795 | O56: 808.0297513 | P56: 132458 | Q56: 135087 | R56: 131.9208984
C57: 49 | D57: 0:0:34.258 | E57: 0:8:51.941 | F57: 5673757.5 | G57: 5175885.5 | H57: 908.3717 | I57: 150.65958 | J57: 1524783 | K57: 0:7:0.145 | L57: 3629.182782 | M57: 3927007 | N57: 1:21:46.890 | O57: 800.3046736 | P57: 135273 | Q57: 137899 | R57: 134.6669922
C58: 50 | D58: 0:0:34.740 | E58: 0:8:57.537 | F58: 5594919 | G58: 5128784 | H58: 895.768 | I58: 149.09114 | J58: 1555901 | K58: 0:7:11.232 | L58: 3608.036973 | M58: 4007150 | N58: 1:30:27.321 | O58: 738.3292788 | P58: 138084 | Q58: 140713 | R58: 137.4150391
C59: 51 | D59: 0:0:41.621 | E59: 0:9:44.909 | F59: 4669938 | G59: 4722680.5 | H59: 747.6755 | I59: 137.0161 | J59: 1587019 | K59: 0:6:33.89 | L59: 4029.091878 | M59: 4087293 | N59: 1:32:40.463 | O59: 735.0634291 | P59: 140898 | Q59: 143533 | R59: 140.1689453
C60: 52 | D60: 0:0:38.543 | E60: 0:9:42.349 | F60: 5042874 | G60: 4733221.5 | H60: 807.384 | I60: 137.6185 | J60: 1618137 | K60: 0:6:16.336 | L60: 4299.713554 | M60: 4167436 | N60: 1:27:40.270 | O60: 792.2475462 | P60: 143718 | Q60: 146347 | R60: 142.9169922
C61: 53 | D61: 0:0:36.32 | E61: 0:9:14.873 | F61: 5394301.5 | G61: 4968109 | H61: 863.6489 | I61: 144.433 | J61: 1649255 | K61: 0:7:37.417 | L61: 3605.583089 | M61: 4247579 | N61: 1:30:27.253 | O61: 782.6388414 | P61: 146532 | Q61: 149161 | R61: 145.6650391
C62: 54 | D62: 0:0:35.562 | E62: 0:9:23.114 | F62: 5465710 | G62: 4895824 | H62: 875.0633 | I62: 142.31932 | J62: 1680373 | K62: 0:6:31.573 | L62: 4291.340312 | M62: 4327722 | N62: 1:33:58.156 | O62: 767.5775555 | P62: 149347 | Q62: 151976 | R62: 148.4140625
C63: 55 | D63: 0:0:35.674 | E63: 0:10:2.636 | F63: 5448550.5 | G63: 4581122 | H63: 872.316 | I63: 132.98575 | J63: 1711491 | K63: 0:6:39.924 | L63: 4279.540613 | M63: 4407865 | N63: 1:35:11.314 | O63: 771.777738 | P63: 152161 | Q63: 154794 | R63: 151.1660156
C64: 56 | D64: 0:0:35.861 | E64: 0:9:21.464 | F64: 5420138.5 | G64: 4910277.5 | H64: 867.7672 | I64: 142.73756 | J64: 1742609 | K64: 0:6:49.744 | L64: 4252.921336 | M64: 4488008 | N64: 1:36:29.409 | O64: 775.210043 | P64: 154979 | Q64: 157609 | R64: 153.9150391
C65: 57 | D65: 0:0:35.858 | E65: 0:9:15.521 | F65: 5420591.5 | G65: 4961915.5 | H65: 867.8398 | I65: 144.2645 | J65: 1773727 | K65: 0:7:35.440 | L65: 3894.534955 | M65: 4568151 | N65: 1:38:6.660 | O65: 776.01747 | P65: 157794 | Q65: 160423 | R65: 156.6630859
C66: 58 | D66: 0:0:35.180 | E66: 0:9:3.974 | F66: 5524943 | G66: 5068093.5 | H66: 884.56506 | I66: 147.32689 | J66: 1804845 | K66: 0:6:47.745 | L66: 4426.40621 | M66: 4648294 | N66: 1:39:20.87 | O66: 779.8012706 | P66: 160608 | Q66: 163237 | R66: 159.4111328
C67: 59 | D67: 0:0:42.347 | E67: 0:9:10.565 | F67: 4589876 | G67: 5007436.5 | H67: 734.85724 | I67: 145.56319 | J67: 1835963 | K67: 0:7:8.463 | L67: 4284.997771 | M67: 4728437 | N67: 1:43:35.974 | O67: 760.6912448 | P67: 163423 | Q67: 166052 | R67: 162.1601562
C68: 60 | D68: 0:0:38.64 | E68: 0:9:48.62 | F68: 5106334 | G68: 4688053.5 | H68: 817.5441 | I68: 136.28154 | J68: 1867081 | K68: 0:7:11.363 | L68: 4328.329041 | M68: 4808580 | N68: 1:45:49.480 | O68: 757.3187096 | P68: 166237 | Q68: 168866 | R68: 164.9082031
C69: 61 | D69: 0:0:41.324 | E69: 0:10:35.150 | F69: 4703501 | G69: 4341663 | H69: 753.0491 | I69: 126.17806 | J69: 1898199 | K69: 0:7:20.512 | L69: 4309.074441 | M69: 4888723 | N69: 1:44:4.347 | O69: 782.9038008 | P69: 169052 | Q69: 171682 | R69: 167.6582031
C70: 62 | D70: 0:0:38.800 | E70: 0:9:46.378 | F70: 5009577 | G70: 4702474 | H70: 802.0361 | I70: 136.67293 | J70: 1929317 | K70: 0:8:37.889 | L70: 3725.348482 | M70: 4968866 | N70: 1:50:24.548 | O70: 750.0686839 | P70: 171867 | Q70: 174497 | R70: 170.4072266
C71: 63 | D71: 0:0:50.10 | E71: 0:12:45.748 | F71: 3876170.8 | G71: 3765409.2 | H71: 622.25555 | I71: 104.658455 | J71: 1960435 | K71: 0:8:15.215 | L71: 3958.755288 | M71: 5049009 | N71: 1:53:59.213 | O71: 738.2441518 | P71: 174681 | Q71: 177431 | R71: 173.2724609
C72: 64 | D72: 0:0:44.76 | E72: 0:11:41.919 | F72: 4397931 | G72: 3929025 | H72: 706.0305 | I72: 114.17557 | J72: 1991553 | K72: 0:9:31.16 | L72: 3486.856573 | M72: 5129152 | N72: 1:54:27.681 | O72: 746.8535594 | P72: 177616 | Q72: 180246 | R72: 176.0214844
C73: 65 | D73: 0:0:46.919 | E73: 0:11:10.449 | F73: 4142618 | G73: 4111255.2 | H73: 663.24945 | I73: 119.53482 | J73: 2022671 | K73: 0:7:54.196 | L73: 4265.474614 | M73: 5209295 | N73: 1:50:45.165 | O73: 783.9225964 | P73: 180432 | Q73: 183060 | R73: 178.7695312
C74: 66 | D74: 0:0:48.80 | E74: 0:10:12.735 | F74: 4042670 | G74: 4499099 | H74: 647.23376 | I74: 130.7939 | J74: 2053789 | K74: 0:8:19.628 | L74: =J74/Secs(K74) -> 4110.636313 | M74: 5289438 | N74: 2:0:13.67 | O74: 733.2520063 | P74: 183246 | Q74: 185875 | R74: =Q74/1024 -> 181.5185547
C75: 67 | D75: 0:0:48.924 | E75: 0:10:48.601 | F75: 3891719 | G75: 4294042.5 | H75: 636.0682 | I75: 123.56132 | J75: 2084907 | K75: 0:9:47.594 | L75: 3548.210159 | M75: =M74+80143 -> 5369581 | N75: 2:13:40.312 | O75: =M75/Secs(N75) -> 669.4977702 | P75: 186056 | Q75: 188712 | R75: 184.2890625
C76: 68 | D76: 0:0:40.919 | E76: 0:10:58.836 | F76: 4754059 | G76: 4185394.5 | H76: 760.5025 | I76: 121.6418 | J76: 2116025 | K76: 0:8:21.845 | L76: 4216.491148 | M76: 5449724 | N76: 1:56:44.803 | O76: 777.9981821 | P76: 188898 | Q76: 191528 | R76: 187.0390625
C77: 69 | D77: 0:0:40.893 | E77: 0:10:35.190 | F77: 4754276.5 | G77: 4340293.5 | H77: 760.98596 | I77: 126.1701 | J77: 2147143 | K77: 0:9:28.163 | L77: 3779.096844 | M77: 5529867 | N77: 1:56:58.273 | O77: 787.9241802 | P77: 191713 | Q77: 194342 | R77: 189.7871094
C78: 70 | D78: 0:0:40.860 | E78: 0:10:27.434 | F78: 4758116.5 | G78: 4393241 | H78: 761.6006 | I78: 127.72977 | J78: 2178261 | K78: 0:8:30.107 | L78: 4270.204094 | M78: 5610010 | N78: 1:54:52.720 | O78: 813.9036549 | P78: 194528 | Q78: 197156 | R78: 192.5351562
C79: 71 | D79: 0:0:40.239 | E79: 0:10:9.195 | F79: 4831649.5 | G79: 4525492 | H79: 773.35425 | I79: 131.55394 | J79: 2209379 | K79: 0:8:25.49 | L79: 4370.766979 | M79: 5690153 | N79: 2:3:16.590 | O79: 769.2940936 | P79: 197342 | Q79: 199971 | R79: 195.2841797
C80: 72 | D80: 0:0:45.100 | E80: 0:10:19.137 | F80: 4310790.5 | G80: 4452776 | H80: 690 | I80: 129.4414 | J80: 2240497 | K80: 0:10:27.329 | L80: 3571.486413 | M80: 5770296 | N80: 2:7:22.615 | O80: 755.0159206 | P80: 200156 | Q80: 202786 | R80: 198.0332031
C81: 73 | D81: 0:0:40.862 | E81: 0:10:13.976 | F81: 4757984 | G81: 4489885 | H81: 761.5633 | I81: 130.52953 | J81: 2271615 | K81: 0:8:43.853 | L81: 4336.359628 | M81: 5850439 | N81: 2:6:24.502 | O81: 771.3675862 | P81: 202971 | Q81: 205600 | R81: 200.78125
C82: 74 | D82: 0:0:42.312 | E82: 0:10:7.100 | F82: 4594931.5 | G82: 4525382 | H82: 735.4651 | I82: 132.00792 | J82: 2302733 | K82: 0:10:4.253 | L82: 3810.875577 | M82: 5930582 | N82: 2:8:1.403 | O82: 772.0701544 | P82: 205785 | Q82: 208406 | R82: 203.5214844
C83: 75 | D83: 0:26:6.378 | E83: 0:41:38.504 | F83: 206345.69 | G83: 1237050.8 | H83: 19.866852 | I83: 32.075996 | J83: 2333851 | K83: 0:9:3.905 | L83: 4290.916612 | M83: 6010725 | N83: 2:21:37.14 | O83: 707.3821309 | P83: 208714 | Q83: 211661 | R83: 206.7001953

Sheet Sheet3
